bitfinex/quotes_SOLUSD_20251018
["timestamp","ask_amount","ask_price","bid_price","bid_amount"]
[1760830823798,0.71,187.74,187.71,5.32730498]
[1760830824911,0.71,187.75,187.71,5.32730498]
[1760830825095,0.71,187.74,187.71,5.32730498]
[1760830826106,0.71,187.73,187.71,5.32730498]
[1760830826310,0.71,187.72,187.71,5.32730498]
[1760830827508,0.71,187.75,187.71,5.32730498]
[1760830827708,0.71,187.74,187.71,5.32730498]
[1760830827905,0.71,187.74,187.71,21.34738347]
[1760830828416,0.71,187.73,187.71,21.34738347]
[1760830828811,102.1,187.76,187.71,21.34738347]
[1760830828997,0.71,187.75,187.71,21.34738347]
[1760830829198,0.71,187.74,187.71,21.34738347]
[1760830830426,0.71,187.73,187.7,5.32758721]
[1760830830600,0.71,187.72,187.7,16.02093402]
[1760830830799,0.71,187.72,187.69,5.52790054]
[1760830831214,0.71,187.71,187.69,5.52790054]
[1760830831525,3.33983636,187.74,187.69,5.52790054]
[1760830831725,0.71,187.73,187.69,5.52790054]
[1760830832020,102.1,187.76,187.69,5.52790054]
[1760830832021,4.04983636,187.72,187.69,5.52790054]
[1760830832316,0.71,187.71,187.69,5.52790054]
[1760830832532,0.71,187.71,187.69,0.2]
[1760830836426,0.71,187.73,187.69,0.2]
[1760830836731,0.71,187.73,187.69,4.09983636]
[1760830837028,0.71,187.73,187.69,8.19967272]
[1760830837413,0.71,187.73,187.69,13.52756901]
[1760830839130,105.43983636,187.74,187.69,9.62773265]
[1760830839304,0.71,187.72,187.69,5.52789629]
[1760830839815,0.71,187.72,187.69,18.4954653]
[1760830841726,0.71,187.73,187.7,8.66733362]
[1760830843533,0.71,187.73,187.7,5.32749726]
[1760830844717,102.1,187.74,187.7,5.32749726]
[1760830844911,102.76,187.74,187.7,5.88749726]
[1760830845113,102.76,187.74,187.7,9.22733362]
[1760830845311,102.1,187.74,187.72,3.33983636]
[1760830845515,0.66,187.79,187.73,3.89983636]
[1760830845829,0.66,187.79,187.7,5.32749726]
[1760830845830,0.66,187.79,187.75,3.33983636]
[1760830846134,0.66,187.79,187.75,9.22582715]
[1760830846609,0.66,187.79,187.76,16.01751248]
[1760830847209,0.66,187.79,187.76,21.34338269]
[1760830847711,0.66,187.79,187.76,5.32587021]
[1760830847928,0.66,187.79,187.77,16.01665732]
[1760830848314,102.76,187.82,187.77,25.24197309]
[1760830848520,0.66,187.81,187.77,25.24197309]
[1760830848732,0.66,187.81,187.77,21.90213673]
[1760830849238,0.66,187.81,187.77,5.88547941]
[1760830849530,0.66,187.81,187.78,16.01494728]
[1760830849922,102.1,187.82,187.78,16.57494728]
[1760830850226,0.66,187.81,187.78,16.01494728]
[1760830850427,0.66,187.81,187.77,8.66531577]
[1760830850731,0.66,187.81,187.79,16.01494728]
[1760830853422,102.76,187.82,187.79,16.01494728]
[1760830854729,0.66,187.81,187.79,16.01494728]
[1760830855531,0.66,187.8,187.79,16.01494728]
[1760830855739,3.99983636,187.8,187.74,16.65612446]
[1760830855935,3.33983636,187.8,187.76,16.01494728]
[1760830856120,0.66,187.79,187.76,16.01494728]
[1760830857035,0.66,187.81,187.76,19.35478364]
[1760830857237,0.66,187.8,187.76,19.91478364]
[1760830857456,0.66,187.8,187.77,5.32566437]
[1760830857628,0.66,187.8,187.77,21.34146662]
[1760830860412,0.66,187.79,187.77,16.01580225]
[1760830860719,0.66,187.78,187.77,16.01580225]
[1760830861750,3.33983636,187.8,187.77,21.34146428]
[1760830862036,0.66,187.79,187.77,21.34146428]
[1760830862227,0.66,187.81,187.77,21.34146428]
[1760830862428,0.66,187.8,187.77,21.34146428]
[1760830866721,102.1,187.82,187.78,3.89983636]
[1760830867034,102.8,187.82,187.78,19.91478364]
[1760830867638,102.8,187.82,187.79,16.01494728]
[1760830868233,102.1,187.82,187.79,19.91478364]
[1760830868632,102.1,187.82,187.8,5.32481363]
[1760830868937,102.1,187.82,187.8,21.33805123]
[1760830869338,102.1,187.82,187.8,5.32481363]
[1760830869526,102.1,187.82,187.81,16.0132376]
[1760830870041,102.1,187.82,187.81,21.33776771]
[1760830870636,102.1,187.82,187.81,25.23760407]
[1760830870841,102.8,187.87,187.81,25.23760407]
[1760830871022,102.8,187.87,187.83,3.33983636]
[1760830871748,0.7,187.86,187.83,24.67427837]
[1760830872551,0.7,187.85,187.83,21.33444201]
[1760830873942,102.76,187.87,187.83,21.33444201]
[1760830874130,0.66,187.86,187.83,21.33444201]
[1760830874327,0.66,187.85,187.83,21.33444201]
[1760830874657,0.66,187.84,187.83,16.01067378]
[1760830875244,102.1,187.87,187.83,21.33462606]
[1760830875545,0.66,187.86,187.83,21.33462606]
[1760830875951,0.66,187.85,187.83,21.33462606]
[1760830876136,0.66,187.84,187.83,21.33462606]
[1760830876447,0.66,187.84,187.79,13.87264969]
[1760830876448,3.99983636,187.84,187.79,13.31264969]
[1760830876748,0.66,187.83,187.81,16.0123829]
[1760830876948,3.33983636,187.84,187.81,16.0123829]
[1760830877141,0.66,187.83,187.81,16.0123829]
[1760830877342,0.66,187.82,187.81,16.0123829]
[1760830878749,3.99983636,187.82,187.78,5.32538076]
[1760830878950,0.66,187.82,187.79,16.0132376]
[1760830879161,3.33983636,187.84,187.79,16.0132376]
[1760830879339,0.66,187.83,187.79,16.5732376]
[1760830879855,0.66,187.82,187.79,5.32498588]
[1760830880057,0.66,187.82,187.8,3.577561]
[1760830880742,3.33983636,187.83,187.8,3.577561]
[1760830880945,3.99983636,187.81,187.75,3.89983636]
[1760830881138,0.66,187.8,187.75,3.89983636]
[1760830881339,0.66,187.8,187.78,5.32533847]
[1760830881538,3.99983636,187.82,187.78,5.88533847]
[1760830881741,0.66,187.82,187.78,11.21060625]
[1760830882057,0.66,187.82,187.78,5.88526778]
[1760830882259,0.66,187.82,187.79,13.31539193]
[1760830883371,3.58010483,187.85,187.79,18.64036002]
[1760830883539,102.1,187.86,187.81,3.33983636]
[1760830883742,102.1,187.86,187.82,3.89983636]
[1760830884353,102.76,187.86,187.83,16.01067378]
[1760830885455,105.43983636,187.86,187.83,16.01067378]
[1760830885639,3.99983636,187.85,187.8,3.33983636]
[1760830885839,3.99983636,187.84,187.81,16.01067378]
[1760830886959,0.66,187.83,187.81,16.01067378]
[1760830887257,0.66,187.82,187.8,5.32481363]
[1760830887448,0.66,187.82,187.8,21.33548741]
[1760830887648,3.99983636,187.83,187.8,21.33548741]
[1760830887964,3.99983636,187.83,187.8,5.32481363]
[1760830888357,3.99983636,187.83,187.8,16.0132376]
[1760830888864,0.66,187.83,187.8,16.0132376]
[1760830889365,0.66,187.83,187.8,21.33796128]
[1760830889758,3.33983636,187.84,187.8,21.89796128]
[1760830890066,3.99983636,187.84,187.8,5.88472368]
[1760830890244,3.99983636,187.84,187.8,21.89796128]
[1760830892161,0.66,187.83,187.8,21.33796128]
[1760830893167,3.33983636,187.84,187.8,21.33796128]
[1760830893349,3.99983636,187.83,187.8,21.33796128]
[1760830893664,0.66,187.82,187.8,21.33796128]
[1760830893962,0.66,187.82,187.8,16.0132376]
[1760830894270,3.99983636,187.82,187.8,16.0132376]
[1760830894862,3.33983636,187.82,187.8,16.0132376]
[1760830895072,3.99983636,187.81,187.78,5.32536855]
[1760830895271,3.33983636,187.8,187.78,21.33860615]
[1760830895767,3.99983636,187.8,187.78,21.33860615]
[1760830896557,0.66,187.8,187.78,21.33860615]
[1760830897365,3.99983636,187.81,187.78,21.33860615]
[1760830898173,0.66,187.81,187.78,21.33860615]
[1760830899466,3.99983636,187.81,187.78,21.33860615]
[1760830899666,0.66,187.8,187.77,5.32566437]
[1760830900170,3.99983636,187.81,187.77,5.32566437]
[1760830900374,3.99983636,187.81,187.77,5.88566437]
[1760830901770,0.66,187.8,187.76,18.6401833]
[1760830901979,0.66,187.8,187.76,5.88594801]
[1760830902187,0.66,187.79,187.76,5.32594801]
[1760830906969,4.04983636,187.81,187.75,21.98164727]
[1760830907275,4.04983636,187.81,187.76,0.56]
[1760830907471,0.71,187.8,187.76,0.56]
[1760830907674,3.33983636,187.82,187.77,0.56]
[1760830907877,4.04983636,187.82,187.77,0.56]
[1760830908569,0.71,187.81,187.77,0.56]
[1760830909275,0.71,187.81,187.78,5.32538076]
[1760830909471,3.33983636,187.82,187.78,5.88538076]
[1760830909670,4.04983636,187.82,187.78,5.88538076]
[1760830910073,0.71,187.81,187.78,5.32538076]
[1760830911674,0.71,187.81,187.77,5.88566437]
[1760830916580,3.33983636,187.82,187.78,0.56]
[1760830916759,3.33983636,187.82,187.79,0.56]
[1760830917074,4.04983636,187.82,187.79,0.56]
[1760830917282,4.04983636,187.82,187.78,5.88515158]
[1760830920683,0.71,187.82,187.77,5.32566437]
[1760830920990,106.14983636,187.83,187.79,0.56]
[1760830921175,3.59183354,187.82,187.79,0.56]
[1760830921368,106.14983636,187.83,187.79,0.56]
[1760830921664,3.59240588,187.82,187.79,0.56]
[1760830921866,106.14983636,187.83,187.79,0.56]
[1760830922065,4.30240588,187.82,187.79,0.56]
[1760830922273,0.71,187.82,187.79,0.56]
[1760830922473,102.81,187.83,187.79,0.56]
[1760830922671,3.59252428,187.82,187.79,0.56]
[1760830922872,102.81,187.83,187.8,5.32481363]
[1760830924279,102.1,187.83,187.8,5.88481363]
[1760830924565,102.81,187.83,187.8,5.88481363]
[1760830925064,102.81,187.83,187.79,5.88509718]
[1760830926291,102.1,187.83,187.8,3.89983636]
[1760830926585,102.1,187.83,187.82,22.88]
[1760830928482,102.1,187.83,187.82,28.20424661]
[1760830928667,0.66,187.86,187.82,32.10408297]
[1760830929365,106.09983636,187.88,187.83,0.56]
[1760830929570,6.93089808,187.87,187.82,31.54408297]
[1760830929891,4.25106172,187.86,187.82,32.10408297]
[1760830930075,0.66,187.86,187.82,32.10408297]
[1760830933394,0.66,187.86,187.82,28.76424661]
[1760830936393,0.66,187.86,187.82,32.10408297]
[1760830938605,3.99983636,187.86,187.82,28.76424661]
[1760830939397,0.7,187.86,187.83,0.56]
[1760830939997,0.7,187.86,187.82,60.86451886]
[1760830940196,0.7,187.85,187.82,60.86451886]
[1760830940498,0.7,187.85,187.82,58.0846825]
[1760830940798,0.7,187.84,187.82,28.20424661]
[1760830941497,4.03983636,187.86,187.82,31.79093005]
[1760830941678,0.7,187.85,187.82,31.79093005]
[1760830942509,0.7,187.86,187.82,32.35093005]
[1760830944191,3.33983636,187.87,187.82,32.35093005]
[1760830944383,0.7,187.86,187.82,32.35093005]
[1760830944698,3.33983636,187.87,187.82,32.35093005]
[1760830945003,0.7,187.85,187.82,32.35093005]
[1760830946499,0.7,187.85,187.82,31.79093005]
[1760830946799,3.58574334,187.87,187.82,45.66154659]
[1760830946999,0.7,187.86,187.82,45.66154659]
[1760830954104,4.03983636,187.86,187.82,45.66154659]
[1760830956801,0.7,187.86,187.82,45.66154659]
[1760830956992,0.7,187.86,187.84,5.32367972]
[1760830957405,105.43983636,187.88,187.84,5.32367972]
[1760830957605,4.28911778,187.87,187.84,5.32367972]
[1760830957916,3.33983636,187.87,187.84,5.32367972]
[1760830958106,0.7,187.86,187.84,5.32367972]
[1760830958893,4.03983636,187.86,187.84,5.32367972]
[1760830959112,4.03983636,187.86,187.83,5.32396315]
[1760830959911,0.7,187.86,187.83,5.32396315]
[1760830960098,0.7,187.86,187.84,21.33330457]
[1760830960604,3.33983636,187.87,187.84,5.32348522]
[1760830960797,0.7,187.85,187.84,5.32348522]
[1760830961896,0.7,187.86,187.83,5.32396315]
[1760830962096,0.7,187.86,187.84,16.00981935]
[1760830962818,0.7,187.86,187.84,21.33343695]
[1760830963205,0.7,187.86,187.84,5.3236176]
[1760830963998,0.7,187.86,187.85,16.00981935]
[1760830967019,0.7,187.86,187.83,5.32391501]
[1760830967199,0.7,187.86,187.84,16.01067378]
[1760830969017,0.7,187.86,187.84,21.33429848]
[1760830973528,0.7,187.86,187.84,16.01067378]
[1760830974825,0.66,187.85,187.84,16.01067378]
[1760830978035,7.59810194,187.85,187.79,22.88]
[1760830978238,3.33983636,187.83,187.79,22.88]
[1760830978421,0.66,187.82,187.81,16.01067378]
[1760830979635,7.59783843,187.82,187.79,5.32507893]
[1760830979845,3.99983636,187.81,187.79,21.33917133]
[1760830980015,0.66,187.8,187.79,21.33917133]
[1760830980522,3.99983636,187.81,187.79,21.33917133]
[1760830981314,3.33983636,187.81,187.79,21.33917133]
[1760830981515,3.99983636,187.81,187.79,21.33917133]
[1760830981714,0.66,187.8,187.79,16.0140924]
[1760830983035,3.99983636,187.8,187.79,16.0140924]
[1760830983242,3.99983636,187.8,187.77,5.32560607]
[1760830983550,3.99983636,187.8,187.79,3.59519699]
[1760830986342,3.99983636,187.8,187.76,5.32591964]
[1760830986545,3.33983636,187.78,187.77,16.01665732]
[1760830986928,3.99983636,187.78,187.77,16.01665732]
[1760830988344,0.66,187.78,187.77,16.01665732]
[1760830991326,0.66,187.79,187.77,16.01665732]
[1760830991529,3.33983636,187.8,187.77,16.01665732]
[1760830991749,0.66,187.79,187.77,16.01665732]
[1760830992733,3.99983636,187.81,187.77,21.34229387]
[1760830992933,0.66,187.8,187.77,21.34229387]
[1760830993134,0.66,187.8,187.77,5.32563655]
[1760830993436,0.66,187.8,187.78,16.01665732]
[1760830994837,0.66,187.8,187.75,5.32605275]
[1760830994838,0.71,187.79,187.75,5.32605275]
[1760830995033,0.71,187.79,187.77,16.01665732]
[1760830995246,102.1,187.82,187.77,16.01665732]
[1760830995247,0.71,187.8,187.77,16.01665732]
[1760830998667,105.43983636,187.82,187.77,21.34222245]
[1760830998837,102.1,187.82,187.8,3.33983636]
[1760830999036,0.71,187.85,187.81,0.56]
[1760830999235,4.04983636,187.85,187.81,0.56]
[1760830999443,0.71,187.84,187.81,16.5723829]
[1760830999862,0.71,187.84,187.8,5.88481363]
[1760831000159,0.71,187.84,187.82,3.58399361]
[1760831001761,0.71,187.85,187.82,3.58399361]
[1760831001962,3.58399361,187.87,187.83,0.56]
[1760831002145,4.29399361,187.88,187.84,0.56]
[1760831002545,4.29399361,187.88,187.85,8.90821013]
[1760831002864,0.71,187.87,187.85,8.90821013]
[1760831003236,3.58399361,187.88,187.85,8.90821013]
[1760831003237,102.81,187.89,187.85,9.46821013]
[1760831003863,102.81,187.89,187.85,0.56]
[1760831004062,102.81,187.89,187.86,13.31125086]
[1760831006564,0.71,187.88,187.86,13.31125086]
[1760831008560,102.1,187.89,187.86,13.31125086]
[1760831008770,102.1,187.89,187.86,13.87125086]
[1760831008969,102.81,187.89,187.86,13.31125086]
[1760831009265,102.81,187.89,187.85,8.66315997]
[1760831009466,0.71,187.88,187.86,13.31125086]
[1760831017367,0.71,187.88,187.86,18.63426324]
[1760831017559,102.1,187.89,187.87,3.89983636]
[1760831017872,0.71,187.92,187.88,3.89983636]
[1760831018056,0.81,187.93,187.89,3.33983636]
[1760831018264,0.81,187.93,187.89,3.89983636]
[1760831018462,0.71,187.92,187.89,3.89983636]
[1760831018762,0.71,187.92,187.9,5.32197977]
[1760831018964,0.71,187.92,187.9,21.32752836]
[1760831019374,0.71,187.92,187.9,5.32197977]
[1760831019567,0.71,187.92,187.91,16.00554859]
[1760831020161,0.71,187.92,187.9,5.32197977]
[1760831026364,0.71,187.91,187.88,16.00554859]
[1760831026666,3.43983636,187.93,187.88,21.3279804]
[1760831026667,0.71,187.9,187.88,21.3279804]
[1760831027090,0.71,187.9,187.88,5.32243181]
[1760831027280,0.71,187.89,187.88,5.32243181]
[1760831027589,0.71,187.89,187.87,3.33983636]
[1760831027791,4.04983636,187.88,187.85,5.32337455]
[1760831028087,0.71,187.87,187.85,5.32337455]
[1760831028687,0.71,187.87,187.84,5.32367972]
[1760831029773,0.71,187.87,187.84,8.66351608]
[1760831031763,0.71,187.86,187.84,5.32367972]
[1760831031964,0.71,187.85,187.84,5.32367972]
[1760831032170,0.71,187.86,187.84,5.32367972]
[1760831032372,0.71,187.87,187.84,5.32367972]
[1760831034468,0.71,187.89,187.85,3.89983636]
[1760831034778,0.71,187.89,187.86,0.56]
[1760831035162,0.71,187.89,187.85,3.89983636]
[1760831035381,0.71,187.89,187.86,5.32311295]
[1760831038068,0.71,187.89,187.86,8.66294931]
[1760831042187,0.71,187.89,187.86,5.32311295]
[1760831043790,6.92623778,187.9,187.85,13.98689907]
[1760831044096,3.33983636,187.86,187.7,18.64677676]
[1760831044390,3.33983636,187.83,187.77,3.89983636]
[1760831044579,3.33983636,187.84,187.78,3.33983636]
[1760831044781,0.71,187.83,187.78,3.33983636]
[1760831045092,0.71,187.82,187.76,3.89983636]
[1760831045304,0.71,187.81,187.76,7.48764097]
[1760831045503,0.71,187.8,187.76,4.14780461]
[1760831045788,0.71,187.8,187.76,5.88572701]
[1760831046008,3.33983636,187.81,187.76,5.32572701]
[1760831046205,4.04983636,187.8,187.76,5.32572701]
[1760831046376,0.71,187.79,187.76,5.32572701]
[1760831047378,0.71,187.79,187.75,5.88618593]
[1760831047686,0.72,187.78,187.75,5.32618593]
[1760831047889,0.72,187.82,187.77,3.33983636]
[1760831048200,0.72,187.81,187.78,3.33983636]
[1760831048903,4.05983636,187.85,187.79,3.89983636]
[1760831049103,4.05983636,187.85,187.8,3.89983636]
[1760831049281,3.33983636,187.82,187.77,17.80112332]
[1760831049481,4.05983636,187.82,187.78,5.32538076]
[1760831049703,4.05983636,187.82,187.78,5.88538076]
[1760831049907,0.72,187.82,187.78,5.88538076]
[1760831050997,3.33983636,187.83,187.78,5.32538076]
[1760831051199,3.33983636,187.84,187.79,3.89983636]
[1760831051501,4.05983636,187.84,187.79,3.89983636]
[1760831051682,4.05983636,187.84,187.8,0.56]
[1760831052101,4.05983636,187.84,187.79,3.89983636]
[1760831052298,0.72,187.83,187.79,3.89983636]
[1760831053111,0.72,187.83,187.8,5.32481363]
[1760831053891,3.33983636,187.84,187.8,5.88481363]
[1760831054092,102.81,187.84,187.8,5.88481363]
[1760831054710,102.1,187.84,187.8,5.32481363]
[1760831055011,102.1,187.84,187.8,9.22464999]
[1760831055195,102.1,187.84,187.81,0.56]
[1760831055620,102.1,187.84,187.8,8.66464999]
[1760831055911,102.81,187.84,187.8,9.22464999]
[1760831057188,102.1,187.84,187.8,5.32481363]
[1760831057389,0.71,187.83,187.8,5.32481363]
[1760831057609,0.71,187.82,187.8,5.32481363]
[1760831059114,0.71,187.82,187.79,5.32509718]
[1760831060118,102.81,187.84,187.79,9.22493354]
[1760831060410,102.1,187.84,187.8,3.89983636]
[1760831060594,102.1,187.84,187.81,0.56]
[1760831060794,102.1,187.84,187.8,3.33983636]
[1760831060994,102.81,187.84,187.8,3.89983636]
[1760831061194,102.81,187.84,187.81,8.66436647]
[1760831061419,102.1,187.84,187.82,3.33983636]
[1760831063220,102.81,187.84,187.82,8.6640453]
[1760831063411,102.81,187.84,187.82,5.32420894]
[1760831064294,4.04983636,187.83,187.75,3.89983636]
[1760831064612,4.04983636,187.82,187.76,8.66578437]
[1760831064804,0.71,187.81,187.76,8.66578437]
[1760831065005,0.71,187.8,187.76,9.22578437]
[1760831065614,0.71,187.8,187.76,5.88594801]
[1760831065820,0.71,187.79,187.76,5.32594801]
[1760831066215,0.71,187.78,187.76,5.32594801]
[1760831067724,3.33983636,187.79,187.75,18.64177448]
[1760831067925,3.33983636,187.79,187.75,22.54161084]
[1760831067926,0.71,187.79,187.75,22.54161084]
[1760831069216,3.33983636,187.8,187.75,21.98161084]
[1760831069425,0.71,187.79,187.75,22.54161084]
[1760831070400,0.71,187.79,187.78,22.88]
[1760831071809,0.71,187.79,187.77,5.32566437]
[1760831080115,0.71,187.82,187.77,8.66550073]
[1760831080322,102.1,187.84,187.79,3.33983636]
[1760831080518,0.71,187.83,187.79,3.33983636]
[1760831080728,102.1,187.84,187.79,3.33983636]
[1760831080928,0.71,187.82,187.78,3.89983636]
[1760831081308,0.71,187.81,187.78,3.33983636]
[1760831081504,0.71,187.81,187.79,5.32509718]
[1760831082235,0.71,187.83,187.79,5.32509718]
[1760831082609,105.43983636,187.84,187.79,5.32509718]
[1760831082931,0.71,187.83,187.79,5.32509718]
[1760831083120,0.71,187.82,187.79,5.32509718]
[1760831083528,0.71,187.82,187.79,8.66493354]
[1760831083734,105.43983636,187.84,187.79,9.22493354]
[1760831084036,0.7,187.83,187.79,9.22493354]
[1760831084231,0.7,187.82,187.79,9.22493354]
[1760831084833,0.7,187.82,187.79,8.66493354]
[1760831087534,4.03983636,187.81,187.76,22.88]
[1760831087734,0.7,187.8,187.76,26.21983636]
[1760831088034,0.7,187.8,187.76,26.77983636]
[1760831088420,0.7,187.8,187.77,5.32560055]
[1760831096347,0.7,187.8,187.77,5.88560055]
[1760831097250,0.7,187.8,187.77,9.22543691]
[1760831097548,0.7,187.83,187.79,3.33983636]
[1760831098066,0.7,187.82,187.79,3.33983636]
[1760831099038,0.7,187.82,187.78,3.89983636]
[1760831099230,0.7,187.82,187.79,5.32509718]
[1760831103659,0.7,187.82,187.79,5.88509718]
[1760831104638,102.1,187.84,187.8,0.56]
[1760831105036,0.7,187.83,187.79,8.66493354]
[1760831105245,102.1,187.84,187.79,8.66493354]
[1760831105548,0.7,187.82,187.79,8.66493354]
[1760831107953,0.7,187.82,187.79,9.22493354]
[1760831109158,105.43983636,187.84,187.79,5.32509718]
[1760831109360,3.33983636,187.83,187.79,5.32509718]
[1760831109660,0.7,187.82,187.79,5.32509718]
[1760831112958,0.7,187.81,187.79,5.32509718]
[1760831114052,105.43983636,187.84,187.79,5.32509718]
[1760831114355,0.67,187.83,187.79,5.32509718]
[1760831114562,0.67,187.82,187.79,5.32509718]
[1760831114764,0.67,187.81,187.79,5.32509718]
[1760831114939,0.67,187.83,187.79,5.32509718]
[1760831115142,0.67,187.82,187.79,5.32509718]
[1760831119961,102.1,187.84,187.79,8.66493354]
[1760831120152,0.67,187.83,187.79,9.22493354]
[1760831120354,0.67,187.82,187.79,9.22493354]
[1760831121669,0.67,187.82,187.79,8.66493354]
[1760831122666,102.77,187.84,187.8,3.89983636]
[1760831123068,0.67,187.83,187.8,3.33983636]
[1760831123271,102.1,187.84,187.8,3.33983636]
[1760831123464,0.67,187.82,187.8,3.33983636]
[1760831123673,0.67,187.82,187.81,5.32453011]
[1760831125680,0.67,187.82,187.79,8.66493354]
[1760831125977,0.67,187.82,187.79,5.32509718]
[1760831127379,0.67,187.82,187.79,5.88509718]
[1760831128169,0.67,187.82,187.79,9.22493354]
[1760831129778,0.67,187.82,187.81,28.20453011]
[1760831130160,0.67,187.83,187.81,28.20453011]
[1760831130392,0.67,187.82,187.81,28.20453011]
[1760831133877,0.67,187.82,187.8,5.32481363]
[1760831134063,0.67,187.82,187.8,8.66464999]
[1760831135480,0.67,187.82,187.8,5.32481363]
[1760831139485,0.67,187.83,187.8,5.32481363]
[1760831140083,102.1,187.84,187.8,5.32481363]
[1760831140273,0.67,187.83,187.8,5.32481363]
[1760831140684,0.67,187.83,187.81,21.33679552]
[1760831141161,0.67,187.83,187.81,5.32441262]
[1760831141357,0.67,187.83,187.82,16.0123829]
[1760831148065,102.1,187.84,187.82,21.89662951]
[1760831148569,102.1,187.84,187.82,5.88424661]
[1760831148769,102.1,187.84,187.83,16.01067378]
[1760831149672,102.82,187.84,187.83,16.01067378]
[1760831150470,106.15983636,187.84,187.83,16.01067378]
[1760831151290,106.15983636,187.84,187.79,5.3248336]
[1760831151495,0.72,187.83,187.82,16.01067378]
[1760831159094,0.72,187.83,187.81,16.01067378]
[1760831159295,0.72,187.82,187.81,16.01067378]
[1760831161198,102.1,187.81,187.74,0.56]
[1760831161378,3.33983636,187.77,187.73,5.32679912]
[1760831161577,102.1,187.81,187.75,5.6551298]
[1760831161578,4.05983636,187.76,187.75,5.6551298]
[1760831161997,4.05983636,187.76,187.7,5.8876363]
[1760831161998,7.65684596,187.76,187.7,5.8876363]
[1760831162196,3.33983636,187.73,187.69,0.2]
[1760831162504,10.87647521,187.77,187.72,5.6551298]
[1760831162704,3.59420729,187.76,187.72,5.6551298]
[1760831162885,5.8876363,187.78,187.72,5.6551298]
[1760831162886,4.31420729,187.75,187.72,5.6551298]
[1760831163201,0.72,187.74,187.72,5.6551298]
[1760831163499,5.8876363,187.78,187.73,0.56]
[1760831163500,4.05983636,187.78,187.73,0.56]
[1760831163700,0.72,187.77,187.73,0.56]
[1760831163892,0.72,187.77,187.73,3.89983636]
[1760831164090,4.05983636,187.78,187.74,14.3217926]
[1760831164293,0.72,187.78,187.74,14.8817926]
[1760831164506,0.72,187.78,187.74,14.3217926]
[1760831164690,0.72,187.78,187.73,9.22639281]
[1760831164887,0.72,187.78,187.74,14.3217926]
[1760831165089,0.72,187.78,187.74,17.66162896]
[1760831165301,26.21983636,187.8,187.74,14.3217926]
[1760831165302,0.72,187.77,187.74,14.3217926]
[1760831168219,0.68,187.78,187.74,14.8817926]
[1760831168715,0.68,187.78,187.74,0.56]
[1760831168898,0.68,187.79,187.75,15.4417926]
[1760831169097,0.68,187.78,187.75,14.8817926]
[1760831169308,0.68,187.78,187.74,5.32645412]
[1760831169512,0.68,187.77,187.74,20.20824672]
[1760831169822,0.68,187.77,187.74,14.8817926]
[1760831170108,0.68,187.77,187.73,9.22661254]
[1760831170321,0.68,187.77,187.75,3.58520643]
[1760831170892,7.60504279,187.8,187.76,0.56]
[1760831171092,102.1,187.79,187.76,0.56]
[1760831171312,102.1,187.79,187.74,8.66630102]
[1760831171610,102.1,187.79,187.77,8.66630102]
[1760831171996,102.1,187.79,187.77,12.00613738]
[1760831172509,102.1,187.79,187.77,3.33983636]
[1760831172807,102.1,187.79,187.78,16.01580225]
[1760831173107,102.1,187.79,187.78,19.91563861]
[1760831173514,0.66,187.82,187.78,19.91563861]
[1760831174008,0.66,187.82,187.78,3.89983636]
[1760831174191,0.66,187.82,187.79,3.58307485]
[1760831175286,3.33983636,187.84,187.79,3.58307485]
[1760831175496,0.66,187.82,187.79,3.58307485]
[1760831176001,0.66,187.81,187.79,3.58307485]
[1760831176207,3.33983636,187.83,187.79,3.58307485]
[1760831176396,0.66,187.81,187.79,3.58307485]
[1760831179103,0.66,187.84,187.8,0.56]
[1760831179411,0.66,187.84,187.8,3.89983636]
[1760831179589,3.58307485,187.85,187.8,3.33983636]
[1760831179911,0.66,187.83,187.81,13.31409571]